[Event "76th Montenegro Championship 2024"]
[Site "Podgorica"]
[Date "2024.02.06"]
[Round "1.7"]
[White "Ivanovic, Bozidar"]
[Black "Abramovic, Dragoljub"]
[Result "1-0"]
[ECO "C10"]
[WhiteElo "2403"]
[BlackElo "2018"]
[Annotator "TA"]
[PlyCount "97"]
[EventDate "2024.02.06"]
[EventType "swiss"]
[EventCountry "MNE"]
[SourceTitle "playchess.com"]
[Source "ChessBase"]
[SourceQuality "1"]
[TimeControl "40/5400+30:1800+30"]

{[%evp 11,97,37,65,22,30,20,24,20,27,18,14,30,21,18,59,51,52,51,52,54,65,62,66,66,76,59,60,56,121,100,102,94,94,64,38,28,32,40,29,35,31,30,25,32,97,110,110,112,146,117,112,105,176,157,156,102,130,129,115,114,114,113,177,220,197,175,370,254,476,478,470,468,481,464,641,627,556,268,383,380,637,592,556,442,1634,782,29978,29978]} 1. e4 {[%emt 0:00:03]} e6 {[%emt 0:02:53]} 2. d4 {[%emt 0:00:25]} d5 {[%emt 0:00:06]} 3. Nc3 {[%emt 0:00:33]} Be7 {[%emt 0:01:12]} 4. Bd3 {[%emt 0:03:14]} dxe4 {[%emt 0:00:34]} 5. Nxe4 {[%emt 0:01:31]} Nf6 {[%emt 0:00:49]} 6. Nf3 {[%emt 0:01:06]} Bd7 {[%emt 0:06:42]} 7. Ne5 {[%emt 0:12:17]} Nc6 {[%emt 0:04:37]} 8. Nxd7 {[%emt 0:17:54]} Qxd7 {[%emt 0:03:06]} 9. c3 {[%emt 0:03:59] White has an edge.} e5 {[%emt 0:05:05]} 10. dxe5 {[%emt 0:06:11]} Nxe5 {[%emt 0:00:21]} 11. Nxf6+ {[%emt 0:00:22]} Bxf6 {[%emt 0:00:30]} 12. Be2 {[%emt 0:00:09]} Qxd1+ {[%emt 0:00:20]} 13. Kxd1 {[%emt 0:00:16]} O-O-O+ {[%emt 0:03:46]} 14. Kc2 {[%emt 0:00:07]} Rhe8 {[%emt 0:03:49]} 15. Be3 {[%emt 0:00:17]} Kb8 {[%emt 0:01:59]} 16. Rad1 {[%emt 0:00:44]} h6 {[%emt 0:02:06]} 17. Rxd8+ {[%emt 0:02:41]} Bxd8 {[%emt 0:01:25]} 18. Rd1 {[%emt 0:01:08]} (18. Re1 $5) 18... c6 {[%emt 0:01:23]} 19. Re1 {[%emt 0:08:29]} Bb6 {[%emt 0:11:30] [#]} (19... Re7 $14) 20. Bc4 $1 {[%emt 0:02:21][%mdl 512]} Rc8 {[%emt 0:28:59] [#]} 21. Bxb6 $1 {[%emt 0:02:22]} Nxc4 $16 {[%emt 0:00:11][%mdl 4096] Endgame. KRB-KRN} 22. Bd4 {[%emt 0:00:20][%cal Oe1e7] Threatens to win with Re7!} f6 $1 {[%emt 0:08:14]} 23. b3 {[%emt 0:11:28]} Na3+ {[%emt 0:12:23]} 24. Kb2 {[%emt 0:00:18]} Nb5 {[%emt 0:00:00]} 25. Be3 {[%emt 0:00:44] Strongly threatening Bf4+.} Rd8 {[%emt 0:00:00]} 26. c4 {[%emt 0:05:36]} Nc7 {[%emt 0:00:00]} 27. Kc3 {[%emt 0:01:25]} Re8 {[%emt 0:00:00]} (27... b6 $14) 28. Rd1 {[%emt 0:01:08]} Ne6 {[%emt 0:00:00]} 29. Rd7 {[%emt 0:04:59]} h5 {[%emt 0:00:00]} 30. a4 {[%emt 0:00:50] White is much more active.} c5 {[%emt 0:01:31]} 31. Rf7 {[%emt 0:03:08]} Rc8 {[%emt 0:00:40]} (31... a5 $16) 32. Re7 $18 {[%emt 0:00:16]} Rc6 {[%emt 0:00:09]} 33. h3 {[%emt 0:03:13]} ({White should play} 33. f4) 33... Kc8 {[%emt 0:00:51]} 34. f4 {[%emt 0:01:22] And now f5 would win.} g6 {[%emt 0:00:51]} 35. g4 {[%emt 0:01:46]} hxg4 {[%emt 0:00:05]} 36. hxg4 {[%emt 0:00:06]} Nd8 {[%emt 0:01:28]} (36... f5 $16) 37. f5 {[%emt 0:00:34]} gxf5 {[%emt 0:00:08]} 38. gxf5 {[%emt 0:00:03]} b6 $2 {[%emt 0:01:02]} (38... Rd6 39. Bxc5 Rd1) 39. Rxa7 {[%emt 0:03:08] Hoping for Bf4.} Rc7 $2 {[%emt 0:00:27]} (39... Nb7 40. Bf4 Nd6) 40. Ra8+ {[%emt 0:00:00]} Kd7 {[%emt 0:00:00]} 41. Ra6 {[%emt 0:03:16]} Rc6 {[%emt 0:09:49]} 42. Bf4 {[%emt 0:05:40]} Nb7 {[%emt 0:06:17]} 43. Ra7 {[%emt 0:02:10]} Kc8 {[%emt 0:00:11]} 44. Ra8+ {[%emt 0:05:51]} Kd7 {[%emt 0:00:01]} 45. Rf8 {[%emt 0:01:57]} Nd8 {[%emt 0:01:10] Inhibits Rf7+.} (45... Ke7 46. Rh8 Nd6) 46. Kd3 {[%emt 0:02:25]} Ke7 {[%emt 0:01:09]} 47. Rg8 {[%emt 0:00:17]} Nf7 {[%emt 0:00:34]} (47... Rc8 $142 48. Rh8 Kd7 49. Rh7+ Ke8) 48. Ke4 {[%emt 0:00:19] Kd5 would now be deadly.} Nd6+ {[%emt 0:05:13]} 49. Kd5 {[%emt 0:00:48] Weighted Error Value: White=0.12 (very precise) /Black=0.54.  Mistake:       	White=1     	Black=8      Inaccurate:     	White=1     	Black=4      OK:         	White=14    	Black=18     Best:        	White=7     	Black=2      Strong:       	White=1     	Black=1} 1-0

[Event "76th Montenegro Championship 2024"]
[Site "Podgorica"]
[Date "2024.02.06"]
[Round "1.8"]
[White "Koljevic, Nikolina"]
[Black "Tomic, Aleksandar"]
[Result "0-1"]
[ECO "B01"]
[WhiteElo "1974"]
[BlackElo "2398"]
[Annotator "TA"]
[PlyCount "94"]
[EventDate "2024.02.06"]
[EventType "swiss"]
[EventCountry "MNE"]
[SourceTitle "playchess.com"]
[Source "ChessBase"]
[SourceQuality "1"]
[TimeControl "40/5400+30:1800+30"]

{[%evp 10,94,54,61,64,45,58,39,23,-1,17,19,17,-18,0,-24,14,-20,-16,-66,-68,-67,8,-50,-39,-38,-29,-45,-42,-55,-51,-71,-52,-110,-108,-105,-110,-108,-97,-100,-91,-123,-124,-119,-95,-133,-93,-141,-152,-133,-137,-375,-384,-390,-388,-457,-448,-455,-451,-469,-459,-445,-445,-495,-495,-500,-493,-575,-569,-793,-735,-840,-831,-1271,-1270,-2049,-1913,-1950,-1560,-2168,-2076,-9086,-5842,-5934,-6025,-2904,-2598]} 1. e4 {[%emt 0:00:02]} d5 {[%emt 0:15:11]} 2. exd5 {[%emt 0:00:09]} Nf6 {[%emt 0:00:04]} 3. d4 {[%emt 0:00:17]} Bg4 {[%emt 0:00:20]} 4. Bb5+ {[%emt 0:03:04]} Nbd7 {[%emt 0:00:18]} 5. f3 {[%emt 0:00:13]} Bf5 {[%emt 0:00:39]} 6. Nc3 {[%emt 0:03:01]} a6 {[%emt 0:01:23]} 7. Bd3 {[%emt 0:02:39]} Bxd3 {[%emt 0:03:21]} 8. Qxd3 {[%emt 0:00:09]} Nb6 {[%emt 0:00:02] White is slightly better.} 9. Bg5 {[%emt 0:05:29]} Nfxd5 {[%emt 0:01:42]} 10. Nge2 {[%emt 0:04:59]} Qd7 {[%emt 0:03:02]} 11. a3 {[%emt 0:06:25] Repels Nb4} e6 {[%emt 0:02:34]} 12. O-O-O {[%emt 0:05:16]} Qc6 {[%emt 0:01:40]} 13. Bh4 {[%emt 0:07:30]} Bd6 {[%emt 0:03:03]} 14. Ne4 {[%emt 0:06:03]} (14. Nxd5 $11 Nxd5 15. Be1) 14... Nc4 {[%emt 0:09:13]} 15. Bf2 {[%emt 0:16:31]} Qb5 {[%emt 0:15:28] Black is more active.} (15... O-O $15) 16. Qb3 {[%emt 0:02:23]} (16. b3 $11 Bxa3+ (16... Nxa3 $2 17. c4 $18) 17. Kb1) 16... Qxb3 {[%emt 0:06:20]} (16... Be7 {feels hotter.} 17. N2c3 Qxb3 18. cxb3 Nce3) 17. cxb3 {[%emt 0:00:06]} Ncb6 {[%emt 0:00:29]} 18. Nc5 {[%emt 0:06:25]} O-O-O {[%emt 0:01:01]} 19. Nc3 {[%emt 0:03:01]} Bf4+ {[%emt 0:06:30]} 20. Kb1 {[%emt 0:00:54]} h5 {[%emt 0:03:53]} 21. Rhe1 {[%emt 0:03:59]} ({White should try} 21. N3e4 $15) 21... Bxh2 $17 {[%emt 0:01:47]} 22. g3 {[%emt 0:02:28] [#]} h4 $1 {[%emt 0:00:45][%mdl 512]} 23. gxh4 {[%emt 0:00:05]} Bd6 {[%emt 0:01:50]} 24. N3e4 {[%emt 0:00:32]} Be7 {[%emt 0:00:55][%cal Od5f4]} 25. Ng5 {[%emt 0:05:58]} Rdf8 {[%emt 0:09:56]} 26. Rg1 {[%emt 0:04:58]} Rh5 {[%emt 0:01:14]} 27. Rc1 {[%emt 0:04:55]} g6 {[%emt 0:01:30]} 28. Nce4 {[%emt 0:01:27]} (28. Rc2 $142) 28... Nf4 {[%emt 0:02:48] And now ...f6 would win.} 29. Bg3 {[%emt 0:01:16]} Nbd5 {[%emt 0:00:09] [#] Hoping for ...f6.} 30. Rc2 $2 {[%emt 0:00:56] This costs White the game.} (30. Rce1 $17 {might work better.}) 30... f6 $19 {[%emt 0:02:13]} 31. Bxf4 {[%emt 0:02:33]} Nxf4 {[%emt 0:00:24]} 32. Rgc1 {[%emt 0:00:32]} c6 {[%emt 0:01:10] Black is clearly winning.} (32... fxg5 33. Rxc7+ Kb8 34. Rxe7 $11) 33. Ng3 {[%emt 0:00:13]} fxg5 {[%emt 0:01:25]} 34. Nxh5 {[%emt 0:00:12]} gxh5 {[%emt 0:00:13]} 35. hxg5 {[%emt 0:00:23]} Bxg5 {[%emt 0:00:55]} 36. Rh2 {[%emt 0:01:29]} Rd8 {[%emt 0:00:44]} 37. Re1 {[%emt 0:01:09]} Rxd4 {[%emt 0:00:49]} 38. Re5 {[%emt 0:00:02]} Bf6 {[%emt 0:00:42]} 39. Re4 {[%emt 0:00:45]} Rxe4 {[%emt 0:01:50]} 40. fxe4 {[%emt 0:00:00]} Bd4 {[%emt 0:00:00] aiming for ...e5.} 41. b4 {[%emt 0:03:10]} e5 {[%emt 0:01:17]} 42. a4 {[%emt 0:00:24]} Kd7 {[%emt 0:00:32] Strongly threatening ...Ke6.} 43. Kc2 {[%emt 0:00:23]} Ke6 {[%emt 0:00:22]} 44. b5 {[%emt 0:00:43]} cxb5 {[%emt 0:01:05] Threatens to win with ...Kf6.} 45. axb5 {[%emt 0:00:05]} axb5 {[%emt 0:00:04]} 46. Kb3 {[%emt 0:00:06]} Kf6 {[%emt 0:00:25]} 47. Kb4 {[%emt 0:00:27]} Kg5 {[%emt 0:00:08] Weighted Error Value: White=0.79/Black=0.19 (very precise) .  Loses game:     	White=1     	---        Mistake:       	White=4     	Black=1      Inaccurate:     	White=5     	Black=2      OK:         	White=9     	Black=17     Best:        	White=1     	Black=1      Brilliant:      	---       	Black=1} 0-1

[Event "76th Montenegro Championship 2024"]
[Site "Podgorica"]
[Date "2024.02.06"]
[Round "1.9"]
[White "Drasko, Milan"]
[Black "Kadic, Branislav"]
[Result "1-0"]
[ECO "D93"]
[WhiteElo "2339"]
[BlackElo "1970"]
[Annotator "RC"]
[PlyCount "121"]
[EventDate "2024.02.06"]
[EventType "swiss"]
[EventCountry "MNE"]
[SourceTitle "playchess.com"]
[Source "ChessBase"]
[SourceQuality "1"]
[TimeControl "40/5400+30:1800+30"]

1. d4 {[%emt 0:00:22]} d5 {[%emt 0:00:22]} 2. c4 {[%emt 0:00:17]} c6 {[%emt 0:01:38]} 3. Nf3 {[%emt 0:00:29]} Nf6 {[%emt 0:00:58]} 4. Qc2 {[%emt 0:00:42]} g6 {[%emt 0:02:04]} 5. Bf4 {[%emt 0:01:16]} Bg7 {[%emt 0:00:30]} 6. e3 {[%emt 0:01:46]} O-O {[%emt 0:02:21]} 7. Nc3 {[%emt 0:01:47]} Bg4 {[%emt 0:08:57]} 8. Ne5 {[%emt 0:11:23]} Be6 {[%emt 0:06:28]} 9. Qb3 {[%emt 0:05:56]} Qc8 {[%emt 0:11:48]} 10. Be2 {[%emt 0:06:51]} Nbd7 {[%emt 0:05:29]} 11. O-O {[%emt 0:02:58]} dxc4 {[%emt 0:01:21]} 12. Bxc4 {[%emt 0:01:16]} Bxc4 {[%emt 0:00:11]} 13. Nxc4 {[%emt 0:01:00]} Nh5 {[%emt 0:02:57]} 14. Bg5 {[%emt 0:02:14]} Bf6 {[%emt 0:00:44]} 15. Bh6 {[%emt 0:04:10]} Bg7 {[%emt 0:00:16]} 16. Bxg7 {[%emt 0:00:26]} Nxg7 {[%emt 0:00:27]} 17. d5 {[%emt 0:09:32]} b6 {[%emt 0:05:17]} 18. Rfd1 {[%emt 0:04:24]} Nc5 {[%emt 0:02:24]} 19. Qc2 {[%emt 0:00:31]} cxd5 {[%emt 0:05:01]} 20. Nxd5 {[%emt 0:00:39]} Re8 {[%emt 0:04:23]} 21. Rac1 {[%emt 0:13:22]} Qb7 {[%emt 0:02:57]} 22. Ne5 {[%emt 0:08:31]} Rad8 {[%emt 0:04:32]} 23. Qc4 {[%emt 0:00:55]} Nge6 {[%emt 0:03:16]} 24. e4 {[%emt 0:04:55]} f6 {[%emt 0:06:52]} 25. Ng4 {[%emt 0:01:22]} Kg7 {[%emt 0:00:32]} 26. b4 {[%emt 0:01:18]} b5 {[%emt 0:02:45]} 27. Qe2 {[%emt 0:00:51]} Nd7 {[%emt 0:01:24]} 28. f4 {[%emt 0:00:54]} Rc8 {[%emt 0:07:19]} 29. Rxc8 {[%emt 0:00:46]} Rxc8 {[%emt 0:00:20]} 30. Nxe7 {[%emt 0:02:36]} Rc4 {[%emt 0:00:56]} 31. Nd5 {[%emt 0:00:39]} h5 {[%emt 0:01:00]} 32. Nf2 {[%emt 0:01:27]} Nb6 {[%emt 0:02:45]} 33. g3 {[%emt 0:02:54]} Nd4 {[%emt 0:02:07]} 34. Qb2 {[%emt 0:02:08]} Nxd5 {[%emt 0:01:28]} 35. Rxd4 {[%emt 0:00:20]} Nb6 {[%emt 0:01:36]} 36. Rxc4 {[%emt 0:01:24]} Nxc4 {[%emt 0:01:03]} 37. Qd4 {[%emt 0:00:18]} Qe7 {[%emt 0:01:35]} 38. Nd3 {[%emt 0:04:43]} Nd2 {[%emt 0:00:26]} 39. Qe3 {[%emt 0:02:38]} Nxe4 {[%emt 0:02:34]} 40. Nc5 {[%emt 0:00:00]} f5 {[%emt 0:00:00]} 41. Nxe4 {[%emt 0:00:00]} fxe4 {[%emt 0:00:22]} 42. Qd4+ {[%emt 0:00:00]} Kh7 {[%emt 0:01:07]} 43. Kf2 {[%emt 0:00:00]} a6 {[%emt 0:05:54]} 44. Ke3 {[%emt 0:00:23]} Qe6 {[%emt 0:00:44]} 45. Qa7+ {[%emt 0:13:27]} Kh6 {[%emt 0:03:24]} 46. Qb8 {[%emt 0:00:31]} Kh7 {[%emt 0:00:12]} 47. Qc7+ {[%emt 0:00:13]} Kg8 {[%emt 0:00:40]} 48. Qc2 {[%emt 0:00:30]} Kh7 {[%emt 0:02:51]} 49. a3 {[%emt 0:01:15]} Kh6 {[%emt 0:04:19]} 50. Qxe4 {[%emt 0:07:17]} Qa2 {[%emt 0:01:42]} 51. Qd4 {[%emt 0:00:19]} Qxa3+ {[%emt 0:00:44]} 52. Ke4 {[%emt 0:00:09]} Kh7 {[%emt 0:00:16]} 53. f5 {[%emt 0:03:46]} gxf5+ {[%emt 0:00:48]} 54. Kxf5 {[%emt 0:00:29]} Qa2 {[%emt 0:02:05]} 55. Qd7+ {[%emt 0:01:14]} Kh8 {[%emt 0:00:39]} 56. Qe8+ {[%emt 0:00:54]} Kg7 {[%emt 0:00:34]} 57. Qg6+ {[%emt 0:02:28]} Kf8 {[%emt 0:01:28]} 58. Qf6+ {[%emt 0:00:10]} Kg8 {[%emt 0:02:30]} 59. Qe6+ {[%emt 0:00:17]} Qxe6+ {[%emt 0:00:02]} 60. Kxe6 {[%emt 0:00:10]} Kg7 {[%emt 0:00:19]} 61. Kd5 {[%emt 0:00:33]} 1-0

[Event "76th Montenegro Championship 2024"]
[Site "Podgorica"]
[Date "2024.02.06"]
[Round "1.10"]
[White "Grbovic, Dino"]
[Black "Sukovic, Andrej"]
[Result "0-1"]
[ECO "E92"]
[WhiteElo "1946"]
[BlackElo "2339"]
[Annotator "TA"]
[PlyCount "68"]
[EventDate "2024.02.06"]
[EventType "swiss"]
[EventCountry "MNE"]
[SourceTitle "playchess.com"]
[Source "ChessBase"]
[SourceQuality "1"]
[TimeControl "40/5400+30:1800+30"]

{[%evp 13,68,45,79,73,104,68,93,65,72,54,41,0,0,-17,-14,-7,-2,-20,-7,-16,0,-54,-16,-29,0,-86,-86,-66,-59,-99,-89,-108,-94,-185,-108,-106,-107,-147,-85,-153,-140,-286,-282,-277,-262,-268,-259,-329,-329,-485,-416,-548,-481,-640,-610,-1942,-1907]} 1. d4 {[%emt 0:05:07]} Nf6 {[%emt 0:00:47]} 2. c4 {[%emt 0:01:04]} g6 {[%emt 0:01:22]} 3. Nc3 {[%emt 0:01:02]} Bg7 {[%emt 0:00:27]} 4. e4 {[%emt 0:00:15]} d6 {[%emt 0:00:07]} 5. Nf3 {[%emt 0:00:21]} O-O {[%emt 0:00:09]} 6. Be2 {[%emt 0:00:06]} c5 {[%emt 0:04:10]} 7. d5 {[%emt 0:01:16]} e5 {[%emt 0:08:09]} 8. O-O {[%emt 0:11:44]} Kh8 {[%emt 0:07:10]} 9. Ne1 {[%emt 0:12:20]} Qe7 {[%emt 0:07:19]} 10. Be3 {[%emt 0:07:27] White is better.} Ng8 {[%emt 0:03:31]} 11. g4 {[%emt 0:05:02]} f5 {[%emt 0:03:46]} 12. gxf5 {[%emt 0:02:18]} gxf5 {[%emt 0:00:08]} 13. exf5 {[%emt 0:00:18]} Bxf5 {[%emt 0:07:52]} 14. Kh1 {[%emt 0:08:58]} Nd7 {[%emt 0:07:05]} 15. Rg1 {[%emt 0:06:17]} Ndf6 {[%emt 0:05:01]} 16. Bg5 {[%emt 0:07:09]} Qd7 {[%emt 0:03:25]} 17. Nc2 {[%emt 0:03:59]} ({White should play} 17. Ng2 $11) 17... Rf7 {[%emt 0:08:21]} 18. Ne3 {[%emt 0:01:38]} Bg6 {[%emt 0:02:27]} 19. Bg4 {[%emt 0:03:39]} (19. Ng2 $11) 19... Nxg4 $17 {[%emt 0:01:37]} 20. Qxg4 {[%emt 0:00:24]} Raf8 {[%emt 0:08:12]} 21. Qxd7 {[%emt 0:02:24]} Rxd7 {[%emt 0:00:18]} 22. Raf1 {[%emt 0:02:30]} Rdf7 {[%emt 0:01:10]} 23. Kg2 {[%emt 0:02:05]} (23. Rg3 $17) 23... Rf3 {[%emt 0:04:15]} (23... Bd3 $19 24. Bh4 Bxf1+ 25. Kxf1 Bh6) 24. Bh4 {[%emt 0:01:39]} a6 {[%emt 0:00:58]} 25. a3 {[%emt 0:02:07] [#]} b5 {[%emt 0:02:58] Black is more active.} 26. cxb5 {[%emt 0:03:16]} (26. b4 $142) 26... axb5 {[%emt 0:00:06] ...b4 would now be deadly.} 27. b4 {[%emt 0:00:30] This move loses the game for White.} (27. Nxb5 $2 {is the wrong capture.} Be4 28. Nxd6 Rxe3+ 29. Nxe4 Rxe4) (27. h3 $17) 27... cxb4 $19 {[%emt 0:00:05]} 28. axb4 {[%emt 0:00:03][%cal Oh4g3]} R3f4 $1 {[%emt 0:00:07][%csl LRb4,LRh4]} 29. Bg3 {[%emt 0:01:45]} Rxb4 {[%emt 0:00:06]} 30. Rc1 {[%emt 0:01:18]} Nf6 {[%emt 0:01:18]} 31. f3 {[%emt 0:02:02]} (31. Rgd1 {was called for.}) 31... Bh6 {[%emt 0:02:38]} 32. Rge1 {[%emt 0:01:22]} Rb2+ {[%emt 0:03:02] Black is clearly winning.} 33. Bf2 {[%emt 0:01:12]} Nh5 {[%emt 0:00:23] Threatens to win with ...Nf4+.} 34. Ne4 {[%emt 0:00:47]} Bxe4 {[%emt 0:00:08] Weighted Error Value: White=0.79/Black=0.23 (precise) .  Mistake:       	White=6     	Black=2      Inaccurate:     	White=8     	Black=3      OK:         	White=2     	Black=7      Best:        	---       	Black=2} 0-1

[Event "76th Montenegro Championship 2024"]
[Site "Podgorica"]
[Date "2024.02.06"]
[Round "1.11"]
[White "Nikcevic, Nebojsa"]
[Black "Vukovic, Krsto"]
[Result "1-0"]
[ECO "A40"]
[WhiteElo "2338"]
[BlackElo "1904"]
[Annotator "TA"]
[PlyCount "53"]
[EventDate "2024.02.06"]
[EventType "swiss"]
[EventCountry "MNE"]
[SourceTitle "playchess.com"]
[Source "ChessBase"]
[SourceQuality "1"]
[TimeControl "40/5400+30:1800+30"]

{[%evp 9,53,49,61,42,58,54,64,55,60,62,75,68,99,84,131,129,198,157,208,196,562,572,549,447,635,645,883,908,919,914,948,939,1064,1073,1085,1075,1450,1383,1441,1372,29986,29987,29989,29990,29990,29984]} 1. c4 {[%emt 0:01:19]} g6 {[%emt 0:00:25]} 2. d4 {[%emt 0:00:28]} Bg7 {[%emt 0:00:07]} 3. e4 {[%emt 0:00:04]} b6 {[%emt 0:00:56]} 4. Nc3 {[%emt 0:01:24]} Bb7 {[%emt 0:00:20]} 5. f4 {[%emt 0:01:18]} e6 {[%emt 0:00:44][%cal Be7e6,Be6d5][%mdl 32]} 6. Nf3 {[%emt 0:00:07]} Ne7 {[%emt 0:00:21]} 7. Be3 {[%emt 0:00:49]} O-O {[%emt 0:01:23]} 8. Qd2 {[%emt 0:01:39] White is slightly better.} d5 {[%emt 0:04:07]} 9. cxd5 {[%emt 0:00:18]} exd5 {[%emt 0:00:11]} 10. e5 {[%emt 0:00:12]} Nf5 {[%emt 0:00:43]} 11. Bf2 {[%emt 0:00:08]} Nd7 {[%emt 0:00:35]} ({Better is} 11... c5) 12. g4 {[%emt 0:01:08]} Nh6 {[%emt 0:03:12]} (12... Nxd4 $16 {was necessary.} 13. Qxd4 (13. Nxd4 c5 $16) 13... c5) 13. h3 {[%emt 0:00:54][%cal Bh2h3,Bh3h4][%mdl 32]} f5 {[%emt 0:03:42]} (13... f6 $16 {keeps fighting.}) 14. g5 {[%emt 0:02:16]} c5 $2 {[%emt 0:02:01]} (14... Nf7 15. h4 Qe7) 15. gxh6 $18 {[%emt 0:00:53]} Bxh6 {[%emt 0:00:18]} 16. O-O-O {[%emt 0:00:33] Threatens to win with h4.} c4 {[%emt 0:02:48]} (16... cxd4 $142 17. Bxd4 (17. Nxd4 Nxe5 18. Kb1 Nc4 $18) (17. Qxd4 Nc5 $18) 17... Nc5) 17. h4 {[%emt 0:00:36]} Bc6 {[%emt 0:01:20]} 18. h5 {[%emt 0:01:27]} Bg7 {[%emt 0:00:31]} 19. hxg6 {[%emt 0:00:06]} h6 {[%emt 0:00:58]} 20. Bh4 {[%emt 0:00:10]} Qe8 {[%emt 0:00:17]} 21. Qh2 {[%emt 0:00:16]} Qxg6 {[%emt 0:00:39]} 22. Be2 {[%emt 0:00:11]} Kf7 {[%emt 0:02:36]} 23. Rdg1 {[%emt 0:00:30]} Qe6 {[%emt 0:00:29] [#]} 24. Be7 $1 {[%emt 0:06:00][%mdl 512]} Qxe7 {[%emt 0:07:16] [#]} (24... Kxe7 25. Rxg7+) 25. Rxg7+ $1 {[%emt 0:00:49][%mdl 512] White mates.} Kxg7 {[%emt 0:00:33]} (25... Ke8 26. Rxe7+) 26. Qxh6+ {[%emt 0:00:10]} Kf7 {[%emt 0:00:18]} 27. Qh5+ {[%emt 0:00:06] White took control after the opening.   Weighted Error Value: White=0.18 (very precise) /Black=0.91.  Mistake:       	---       	Black=5      Inaccurate:     	---       	Black=2      OK:         	White=5     	Black=1      Best:        	White=1     	---} 1-0

[Event "76th Montenegro Championship 2024"]
[Site "Podgorica"]
[Date "2024.02.06"]
[Round "1.12"]
[White "Zivkovic, Slaven"]
[Black "Vujosevic, Vladimir"]
[Result "0-1"]
[ECO "C54"]
[WhiteElo "1899"]
[BlackElo "2335"]
[Annotator "TA"]
[PlyCount "64"]
[EventDate "2024.02.06"]
[EventType "swiss"]
[EventCountry "MNE"]
[SourceTitle "playchess.com"]
[Source "ChessBase"]
[SourceQuality "1"]
[TimeControl "40/5400+30:1800+30"]

{[%evp 11,64,8,23,11,28,20,21,7,18,0,14,14,7,0,23,12,31,5,18,23,21,8,16,0,0,-40,-22,-58,-49,-130,-124,-158,-153,-174,-172,-202,-214,-194,-215,-326,-319,-476,-244,-468,-501,-475,-472,-748,-758,-1079,-1051,-1119,-1108,-1169,-1150]} 1. e4 {[%emt 0:00:03]} e5 {[%emt 0:00:20]} 2. Nf3 {[%emt 0:00:08]} Nc6 {[%emt 0:00:24]} 3. Bc4 {[%emt 0:00:07]} Nf6 {[%emt 0:00:23]} 4. d3 {[%emt 0:00:04]} Bc5 {[%emt 0:01:38]} 5. c3 {[%emt 0:00:14]} d6 {[%emt 0:00:42]} 6. h3 {[%emt 0:00:08]} a6 {[%emt 0:00:37]} 7. Bb3 {[%emt 0:00:06]} h6 {[%emt 0:01:47]} 8. Nbd2 {[%emt 0:01:21][%cal Bb1d2,Bd2f1,Bf1g3][%mdl 32]} Ba7 {[%emt 0:01:15]} 9. Nf1 {[%emt 0:02:17] The position is equal.} Be6 {[%emt 0:02:46]} 10. Ng3 {[%emt 0:04:00]} O-O {[%emt 0:03:40]} 11. O-O {[%emt 0:00:12]} d5 {[%emt 0:03:45]} 12. Qe2 {[%emt 0:06:03][%cal Of3e5]} Re8 {[%emt 0:02:49]} 13. Rd1 {[%emt 0:08:38]} d4 {[%emt 0:07:20]} 14. Nh4 {[%emt 0:08:56]} Bxb3 {[%emt 0:15:20]} 15. axb3 {[%emt 0:00:16]} Bc5 {[%emt 0:01:37]} 16. Qf3 {[%emt 0:09:13]} Re6 {[%emt 0:03:53]} 17. Nhf5 {[%emt 0:05:49]} Bf8 {[%emt 0:01:02]} 18. Nf1 {[%emt 0:17:49]} a5 {[%emt 0:12:23]} 19. Qg3 {[%emt 0:09:07]} Kh7 {[%emt 0:00:59]} 20. Qh4 {[%emt 0:01:19] [#]} (20. Qf3 $15) 20... Nd7 $1 $17 {[%emt 0:05:25]} 21. Qg4 {[%emt 0:06:18]} g6 {[%emt 0:02:20]} 22. Nh4 {[%emt 0:00:52]} Nc5 {[%emt 0:04:18]} 23. b4 {[%emt 0:02:16]} axb4 {[%emt 0:00:31]} 24. Rxa8 {[%emt 0:00:07]} Qxa8 {[%emt 0:00:11]} 25. cxd4 {[%emt 0:00:10]} (25. c4 $142) 25... Nxd4 $19 {[%emt 0:00:29]} 26. Kh1 {[%emt 0:05:32]} (26. Ng3 {was worth a try.}) 26... Qd8 {[%emt 0:02:59]} (26... Qa4 $142 {Threatens to win with ...h5.} 27. Ng3 Qb3) 27. f4 $2 {[%emt 0:00:57] [#]} (27. Nf3) 27... h5 {[%emt 0:01:33] Black is clearly winning.} 28. Qg3 {[%emt 0:01:46]} Ne2 {[%emt 0:01:04]} 29. Qf2 {[%emt 0:00:25]} (29. Qf3 $142 Nxc1 30. f5 gxf5 (30... N1xd3 $2 31. fxe6 Qe7 32. Rd2 $19) 31. Nxf5 (31. Qxh5+ $2 {perishes.} Kg8 $19) 31... N1xd3 (31... Qg5 $2 32. h4 $19) 32. Qxh5+ Kg8 33. Kh2) 29... Nxc1 {[%emt 0:00:20]} ({Inferior is} 29... Nxd3 30. Qxe2 $11) 30. f5 {[%emt 0:00:31]} N1xd3 {[%emt 0:01:11]} 31. fxg6+ {[%emt 0:00:36]} fxg6 {[%emt 0:00:37]} 32. Qf7+ {[%emt 0:00:34]} Bg7 {[%emt 0:00:18] Weighted Error Value: White=0.75/Black=0.17 (very precise) .  Mistake:       	White=5     	Black=1      Inaccurate:     	White=4     	---        OK:         	White=5     	Black=12     Strong:       	---       	Black=1} 0-1